Cogmind - Beta 10.2 @@@ ROGUE MODE // 2022.03.11 @ 23:31:27 Player: Dytto Result: Destroyed by G-34 Mercenary with Small Laser Performance ------------- Evolutions (0) 0 Regions Visited (1) 200 Robots Destroyed (4) 20 Value Destroyed (64) 64 Prototype IDs (0) 0 Alien Tech Used (0) 0 Bonus (0) 0 TOTAL SCORE: 284 Bonus ------- None Cogmind --------- Core Integrity 0/250 Matter 247/300 Energy 100/100 System Corruption 0% Temperature Cool (10) Movement Core (50) Location -10/Materials Parts ------- > --- POWER (1) -------- (None) > --- PROPULSION (2) --- (None) > --- UTILITY (2) ------ Sensor Array > --- WEAPON (2) ------- (None) > --- INVENTORY (4) ---- Ion Engine Flight Unit High-capacity Battery (400) Grenade Launcher Peak State ------------ > --- POWER ------------ Light Ion Engine > --- PROPULSION ------- Wheel Wheel > --- UTILITY ---------- High-capacity Storage Unit Sensor Array > --- WEAPON ----------- Small Laser Light Assault Rifle > --- INVENTORY -------- Ion Engine [Rating: 7] Favorites ----------- Power Light Ion Engine Engine Light Ion Engine Propulsion Wheel Wheel Wheel Flight Unit Flight Unit Utility Sensor Array Device Sensor Array Storage High-capacity Storage Unit Weapon Light Assault Rifle Energy Gun Small Laser Ballistic Gun Light Assault Rifle Build | -11 -10 ------- Run | Scr Mat Slots Evolved . | . . Power . | . . Propulsion . | . . Utility . | . . Weapon . | . . Parts Attached 14 | 5 9 Power 2 | 1 1 Engine 2 | 1 1 Core . | . . Reactor . | . . Propulsion 3 | 2 1 Treads . | . . Leg . | . . Wheel 2 | 2 . Hover . | . . Flight 1 | . 1 Utility 4 | . 4 Device 2 | . 2 Storage 2 | . 2 Processor . | . . Hackware . | . . Protection . | . . Artifact . | . . Weapon 5 | 2 3 Energy Gun 1 | 1 . Energy Cannon . | . . Ballistic Gun 4 | 1 3 Ballistic Cannon . | . . Launcher . | . . Special Weapon . | . . Impact Weapon . | . . Slashing Weapon . | . . Piercing Weapon . | . . Special Melee Weapon . | . . Unidentified Prototypes . | . . Parts Lost 7 | . 7 Power 2 | . 2 Propulsion 2 | . 2 Utility 1 | . 1 Weapon 2 | . 2 Highest Loss Streak 5 | . 5 Average Slot Usage (%) 74 | . 74 Engine 13 | . 13 Wheel 21 | . 21 Flight 2 | . 2 Device 11 | . 11 Energy Gun 10 | . 10 Ballistic Gun 15 | . 15 Naked Turns . | . . Heaviest Build 38 | 5 38 Greatest Support 20 | 20 20 Greatest Overweight (x) 1 | . 1 Average Overweight (x) . | . . Largest Inventory Capacity 12 | 4 12 Average Capacity 4 | 4 4 Most Carried 4 | 1 4 Average Carried 2 | . 2 Final Capacity 4 | 4 4 Final Carried 4 | 1 4 Class Distribution -------------------- 100% | Mutant Dominant Class ---------------- Mutant | -10/Materials Resources | -11 -10 ----------- Run | Scr Mat Matter Collected 286 | 254 32 Remotely . | . . Salvage Created 86 | 43 43 Parts 8 | 3 5 Haulers Intercepted . | . . Recyclers Shooed . | . . Parts Field Recycled . | . . Retrieved Matter . | . . Parts Self-Destructed . | . . Prevented . | . . Kills | -11 -10 ------- Run | Scr Mat Combat Hostiles Destroyed 4 | 1 3 Guns 4 | 1 3 Classes Destroyed 2 | 1 1 Swarmer 3 | . 3 Grunt 1 | 1 . Best Kill Streak 3 | 1 3 Combat Bots Only 3 | 1 3 Max Kills in Single Turn 1 | 1 1 Gunslinging . | . . Exploded . | . . Melee . | . . Uniques/NPCs Destroyed . | . . Combat | -11 -10 -------- Run | Scr Mat Damage Taken 657 | 20 637 Core 254 | . 254 Absorbed by Shields . | . . Core Remaining (%) 100 | 100 . Volleys Fired 35 | 4 31 Largest 2 | 2 1 Hottest 60 | 60 40 Shots Fired 39 | 8 31 Gun 39 | 8 31 Cannon . | . . Launcher . | . . Special . | . . Kinetic 29 | 4 25 Thermal 10 | 4 6 Explosive . | . . Electromagnetic . | . . Robot Hit Streak 6 | 4 6 Robot Miss Streak 4 | 2 4 Penetration Max . | . . Secondary Targets . | . . Shots Hit Robots 18 | 5 13 Core Hits 6 | 2 4 Critical Hits . | . . Critical Kills . | . . Critical Parts Destroyed . | . . Melee Attacks . | . . Impact . | . . Slashing . | . . Piercing . | . . Sneak Attacks . | . . Combat Hostiles . | . . Follow-up Attacks . | . . Damage Inflicted 161 | 44 117 Guns 161 | 44 117 Cannons . | . . Explosions . | . . Melee . | . . Ramming . | . . Kinetic 138 | 21 117 Thermal 23 | 23 . Explosive . | . . Electromagnetic . | . . Impact . | . . Slashing . | . . Piercing . | . . Highest Corruption . | . . Average Corruption . | . . Corruption Purged . | . . Overload Shots . | . . Overflow Damage . | . . Projectiles . | . . Explosions . | . . Melee . | . . Knockbacks . | . . Impact . | . . Kinetic . | . . Secondary . | . . Self-Inflicted Damage . | . . Shots . | . . Rammed . | . . Targets Rammed . | . . Kicked . | . . Crushed . | . . Highest Temperature 52 | 52 15 Average Temperature 19 | 24 8 Received Heat Transfer 180 | 12 168 Siege Activations . | . . Robots Corrupted . | . . Combat Hostiles . | . . Parts Fried . | . . Impact Corruptions . | . . Robots Melted . | . . Combat Hostiles . | . . Parts Melted . | . . Heat Transferred 50 | 50 . Parts Sabotaged . | . . Parts Stolen . | . . Parts Stripped . | . . Power Chain Reactions . | . . Missiles Intercepted . | . . Alert | -11 -10 ------- Run | Scr Mat Peak Influence 55 | 20 55 Initial 13 | . 13 Average 16 | 4 17 Maximum Alert Level . | . . Low Security (%) 100 | 100 100 Level 1 . | . . Level 2 . | . . Level 3 . | . . Level 4 . | . . Level 5 . | . . High Security . | . . Max Security . | . . Squads Dispatched 1 | . 1 Investigation 1 | . 1 Extermination . | . . Reinforcement . | . . Assault . | . . Garrison . | . . Intercept . | . . Construction Impeded . | . . Haulers Reinforced . | . . Stealth | -11 -10 --------- Run | Scr Mat Distress Signals . | . . Communications Jammed . | . . Distress Signals . | . . Times Spotted 6 | 1 5 Peak Tracking Total 3 | 1 3 Tactical Retreats . | . . Traps | -11 -10 ------- Run | Scr Mat Traps Triggered 1 | . 1 Indirectly . | . . Trap Hack Attempts . | . . Triggered . | . . Disarmed . | . . Reprogrammed . | . . Reused . | . . Traps Extracted . | . . Installed . | . . Triggered . | . . Machines | -11 -10 ---------- Run | Scr Mat Machines Disabled . | . . Max in Single Turn . | . . Machines Sabotaged . | . . Garrisons Compromised . | . . Overloaded Fab Kills . | . . Fab Network Shutdowns . | . . Hacking | -11 -10 --------- Run | Scr Mat Machines Accessed 3 | . 3 Terminals 2 | . 2 Fabricators . | . . Repair Stations 1 | . 1 Recycling Units . | . . Scanalyzers . | . . Garrison Access . | . . Total Hacks 5 | . 5 Successful 3 | . 3 Failed 2 | . 2 Catastrophic . | . . Database Lockouts . | . . Manual . | . . Terminals 3 | . 3 Fabricators . | . . Repair Stations 2 | . 2 Recycling Units . | . . Scanalyzers . | . . Garrison Access . | . . Terminal Hacks 1 | . 1 Robot Analysis 1 | . 1 Fabricator Hacks . | . . Repair Station Hacks 2 | . 2 Scan Component 1 | . 1 Repair 1 | . 1 Recycling Unit Hacks . | . . Scanalyzer . | . . Garrison Access Hacks . | . . Unauthorized Hacks . | . . Terminals . | . . Fabricators . | . . Repair Stations . | . . Recycling Units . | . . Scanalyzers . | . . Garrison Access . | . . Data Cores Recovered . | . . Used . | . . Hacking Detections 2 | . 2 Full Trace Events . | . . Feedback Events . | . . Feedback Blocked . | . . Robot Schematics Acquired . | . . Robots Built . | . . Matter . | . . Time . | . . Total Robot Build Rating . | . . Part Schematics Acquired . | . . Parts Built . | . . Matter . | . . Time . | . . Total Part Build Rating . | . . Parts Repaired 1 | . 1 Time 26 | . 26 Parts Recycled . | . . Recycled Matter . | . . Retrieved Matter . | . . Retrieved Components . | . . Parts Scanalyzed . | . . Part Schematics Acquired . | . . Parts Damaged . | . . Bothacking | -11 -10 ------------ Run | Scr Mat Used RIF Installer . | . . Robots Hacked . | . . Non-combat . | . . Combat . | . . Robot Hacks Applied . | . . Relay Couplers Released . | . . Robots Rewired . | . . Allies Hacked . | . . Hacks Repelled . | . . Allies | -11 -10 -------- Run | Scr Mat Total Allies . | . . Largest Group . | . . Highest-Rated Group . | . . Highest-Rated Ally . | . . Total Orders . | . . Ally Attacks . | . . Total Damage . | . . Kills . | . . Allies Corrupted . | . . Allies Melted . | . . Intel | -11 -10 ------- Run | Scr Mat Robot Analysis Total 1 | . 1 Derelict Logs Recovered . | . . Drone Launches . | . . Drone Recoveries . | . . Exploration | -11 -10 ------------- Run | Scr Mat Turns Passed 1193 | 125 1068 Spaces Moved 815 | 132 683 Core 84 | 22 62 Treads . | . . Legs . | . . Wheels 529 | 110 419 Hover . | . . Flight 202 | . 202 Fastest Speed 40 | 50 40 Average Speed 77 | 75 77 Slowest Speed 120 | 80 120 Overloaded Moves . | . . Propulsion Burnouts . | . . Robots Hopped 1 | . 1 Cave-ins Triggered . | . . Exploration Rate (%) 16 | 9 24 Regions Visited 1 Branch Regions . Pre-discovered Areas . | . . Known Exits Taken . | . . Unknown Exits Taken 1 | 1 . Scrap Searched . | . . Spaces Dug . | . . Terrain Destroyed . | . . Melee . | . . Projectile . | . . AOE . | . . Terrain Rammed . | . . Walls Destroyed . | . . Machines Disabled . | . . Actions | -11 -10 --------- Run | Scr Mat Total 1341 | 149 1192 Wait 465 | 6 459 Move 812 | 131 681 Hop 1 | . 1 Pick Up 6 | 3 3 Fast Attach 11 | 3 8 Attach 3 | 2 1 Detach 4 | . 4 Swap . | . . Drop 4 | . 4 Fire 35 | 4 31 Melee . | . . Ram . | . . Kick . | . . Crush . | . . Escape Stasis . | . . Rewire . | . . Trap . | . . Miscellaneous . | . . Route ------- -11/Scrapyard -10/Materials History --------- Turn | Location | Event 2 | -11/Scrapyard | Met Revision 17 78 | -11/Scrapyard | Discovered new exit (range 8) 126 | -11/Scrapyard | Entered Materials 303 | -10/Materials | Build established: Mutant 974 | -10/Materials | Lost 5 parts (1p2n1u1w) 1056 | -10/Materials | Repaired Lgt. Assault Rifle 1164 | -10/Materials | Core integrity fell below 50% 1185 | -10/Materials | Core integrity fell below 20% 1194 | -10/Materials | Destroyed by G-34 Mercenary with Small Laser Last Messages --------------- 01030_ Connecting with Repair Station... >>Scan(Lgt. Assault Rifle) Scanning Lgt. Assault Rifle... Ready to Repair: Lgt. Assault Rifle Rating: 1 Time: 26 >>Repair Repairing Lgt. Assault Rifle... ETC: 26 01036_ Acquired Hcp. Battery. 01056_ Repair station completes Lgt. Assault Rifle repairs. 01058_ Acquired Lgt. Assault Rifle. 01062_ Dropped Lgt. Assault Rifle. 01103_ Acquired Sensor Array. 01179_ Electrolysis Chamber disabled. 01182_ K-01 Serf collects debris. 01186_ Lgt. Ion Engine destroyed. 01187_ K-01 Serf collects debris. 01193_ Lgt. Assault Rifle destroyed. Map ----- +----------------------------------------------------+ | ?????????????????????????????????? | | ?????????????????????????????????? | | ?????????????????????????????????? | | ?????????????????????????????????? | | ?????????????????????????????????? | | ?????????????????????????????????? | | ?????????????????????????????????? | | ?????????????????????????????????? | | ?????????????????????????????????? | | ???????????????????????????? ????? | | ??????????????????????????? ??? | | ????????????##+###+######## | | ????????????# | | ????????????# | | ????????????# """ """"" | | ????????????# """ ""T"" | | ????????????# """ | | ?????######## | | ?????# T # | | ?????# # """ """ """ | | ?????# """ # """ """ """ | | ?????# """ # """ """ """ ##?? | | ?????# """ + #??? | | ?????# # #??? | | ?????######## #??? | | ?????# %g@g # #??? | | ?????# "k" # ######+#+#### #??? | | ?????#! """ # #???????????? #??? | | ?????# """ # #?????????????#??? | | ?????# k ; #????????????????? | | ?????# # #????????????????? | | ???########## #????????????????? | | ???# #### #????????????????? | | ???# #????????????????? | | ???# #????????????????? | | ???# #????????????????? | | ???# ###+#######?????????????? | | ???## ## #?????????????? | | ????# ## "Y" #?????????????? | | ????# ## """ #?????????????? | | ????# ## #?????????????? | | ????# ############?????????????? | | ????# # #?????????????????? | | ????# # #?????????????????? | | ????# # #?????????????????? | | ????# # "T" #?????????????????? | | ????# # """ #?????????????????? | | ????# + #?????????????????? | | ????# ########?????????????????? | | ????# ###########??????????????? | +----------------------------------------------------+ Best States ------------- Heat Dissipation 25 Energy Generation 10 Energy Capacity 125 Matter Stores 300 Matter Capacity 300 Sight Range 16 Robot Scan Range 10 Terrain Scan Density 10 Evasion (%) 62 Item Schematics ----------------- None Robot Schematics ------------------ None Fabricated ------------ Nothing Alien Tech Used ----------------- None Achievements -------------- None Challenges ------------ None Game ------ Seed WarpContainmentMembrane Manual? 0 Play Time 00:19:05 Cumulative 12.6 hours Start 2022.03.11 @ 23:12:21 End 2022.03.11 @ 23:31:27 Sessions 1 Manual Loads 0 Difficulty Rogue Special Mode None Game No. 40 Rogue 4 Adventurer 36 Explorer 0 Win Type - Total 0 Types 0/0/0/0/0/0/0/0/0 Lore% 15 Gallery% 18 Achievement% 13 Wizard Run 0 Options --------- ASCII 0 Keyboard 1 Movement Arrows Keybinds 0 Fullscreen 2 Font 18/X11Bold Map View 76x50 Tactical HUD 1 Map Filters NONE Filters NONE Steam 1 RUN: 762c4170-0a1f-4cd0-8ac4-2edd47f9b491